bitfinex-derivatives/quotes_SOLF0:USTF0_20250819
["timestamp","ask_amount","ask_price","bid_price","bid_amount"]
[1755614919052,3.82192496,178.81,178.66,3.0]
[1755614919252,3.82192496,178.8,178.66,3.0]
[1755614919457,3.82192496,178.79,178.66,3.0]
[1755614919649,3.0,178.82,178.67,3.0]
[1755614919850,3.82456225,178.81,178.67,3.0]
[1755614920051,3.82456225,178.8,178.67,3.0]
[1755614920248,6.89456225,178.79,178.67,3.0]
[1755614920451,3.82456225,178.78,178.67,3.0]
[1755614921152,5.5946,178.71,178.62,3.0]
[1755614921551,3.07,178.79,178.64,3.0]
[1755614921776,3.07,178.77,178.62,3.0]
[1755614921957,3.07,178.75,178.57,8.5988]
[1755614922252,3.83248733,178.74,178.57,3.0]
[1755614922452,3.83248733,178.73,178.57,8.5989]
[1755614922653,3.07,178.75,178.57,8.5989]
[1755614922855,3.83795221,178.74,178.58,3.0]
[1755614923048,3.07,178.75,178.6,5.5979]
[1755614923250,3.83761871,178.74,178.61,3.0]
[1755614923556,3.07,178.75,178.61,3.0]
[1755614923855,3.07,178.73,178.61,3.0]
[1755614924054,3.83941735,178.72,178.61,3.0]
[1755614924256,3.83941735,178.72,178.54,12.55623826]
[1755614924553,3.07,178.7,178.55,3.0]
[1755614924860,4.81389336,178.69,178.55,3.0]
[1755614925153,3.07,178.68,178.55,3.0]
[1755614925760,3.07,178.66,178.55,3.0]
[1755614925950,3.84320281,178.65,178.55,3.0]
[1755614926151,3.07,178.63,178.5,3.0]
[1755614926354,3.84394374,178.62,178.5,3.0]
[1755614926555,3.07,178.63,178.5,3.0]
[1755614926556,3.84962028,178.61,178.5,3.0]
[1755614926747,6.91932317,178.6,178.5,3.0]
[1755614926950,3.07,178.6,178.5,3.0]
[1755614928258,3.07,178.67,178.5,3.0]
[1755614929559,3.07,178.64,178.5,3.0]
[1755614929754,3.07,178.64,178.42,0.97488549]
[1755614929960,3.07,178.61,178.43,3.0]
[1755614930158,12.55623826,178.57,178.43,3.0]
[1755614930357,160.55,178.56,178.38,3.0]
[1755614930655,3.07,178.55,178.38,3.0]
[1755614932660,3.07,178.55,178.4,5.6042]
[1755614932855,3.07,178.55,178.41,3.0]
[1755614933358,3.07,178.55,178.35,3.0]
[1755614934362,3.07,178.55,178.38,3.0]
[1755614934755,3.07,178.55,178.38,8.6048]
[1755614935156,3.07,178.55,178.38,3.0]
[1755614935953,3.07,178.55,178.42,3.0]
[1755614936458,3.07,178.55,178.38,3.0]
[1755614936863,3.07,178.54,178.38,3.0]
[1755614938363,160.53,178.54,178.38,3.0]
[1755614938560,157.46,178.54,178.38,3.0]
[1755614938760,5.6045,178.4,178.35,3.0]
[1755614939161,3.07,178.48,178.36,3.0]
[1755614940160,3.07,178.53,178.36,3.0]
[1755614940564,3.07,178.53,178.37,3.0]
[1755614941772,3.07,178.53,178.38,3.0]
[1755614942368,3.07,178.53,178.39,3.0]
[1755614944870,3.07,178.53,178.4,5.604]
[1755614945072,3.07,178.53,178.41,3.0]
[1755614945578,3.07,178.57,178.41,3.0]
[1755614945969,3.07,178.57,178.44,5.603]
[1755614946163,3.07,178.57,178.42,12.55623826]
[1755614946164,3.07,178.57,178.45,3.0]
[1755614948473,16.78,178.65,178.45,3.0]
[1755614948474,0.97447601,178.69,178.45,3.0]
[1755614948775,3.07,178.68,178.54,3.0]
[1755614948966,0.03641104,178.59,178.54,3.0]
[1755614949170,3.07,178.68,178.55,0.04034232]
[1755614949466,3.07,178.68,178.56,3.1]
[1755614949971,3.07,178.68,178.52,3.1]
[1755614950369,3.07,178.68,178.53,0.04027895]
[1755614950673,12.55623826,178.67,178.53,0.04027895]
[1755614950868,12.55623826,178.67,178.44,12.55623826]
[1755614950869,2.99,178.66,178.47,3.1]
[1755614951177,157.42,178.65,178.58,0.04265944]
[1755614951369,2.99,178.64,178.58,0.04265944]
[1755614951570,0.97447601,178.69,178.58,0.04265944]
[1755614952071,2.99,178.68,178.53,3.1]
[1755614952472,2.99,178.68,178.62,0.03894219]
[1755614954174,2.99,178.68,178.46,12.55623826]
[1755614954375,0.97447601,178.69,178.42,376.54]
[1755614954376,2.99,178.65,178.47,3.1]
[1755614956175,5.6015,178.49,178.47,3.1]
[1755614956377,5.6015,178.49,178.48,3.1]
[1755614957779,5.6024,178.47,178.42,376.54]
[1755614957973,2.99,178.58,178.43,3.1]
[1755614958182,14.1876,178.58,178.43,3.1]
[1755614958379,376.42,178.61,178.48,5.6015]
[1755614958580,376.42,178.61,178.49,3.1]
[1755614958792,157.32,178.66,178.5,12.55623826]
[1755614958976,157.32,178.66,178.49,3.14188983]
[1755614958977,376.42,178.71,178.56,3.1]
[1755614959476,2.99,178.75,178.56,3.1]
[1755614959685,157.32,178.76,178.61,3.1]
[1755614959876,157.32,178.76,178.62,0.03923866]
[1755614960082,157.32,178.76,178.66,3.1]
[1755614960286,2.99,178.79,178.66,3.1]
[1755614960880,2.99,178.79,178.69,0.03657992]
[1755614961287,0.97391694,178.8,178.7,3.1]
[1755614961482,2.99,178.88,178.7,3.1]
[1755614961782,0.97356274,178.87,178.7,3.1]
[1755614961978,0.97356274,178.87,178.71,12.55623826]
[1755614962181,160.95,178.88,178.71,12.55623826]
[1755614962182,160.95,178.88,178.77,0.04266038]
[1755614962680,160.95,178.88,178.76,3.1]
[1755614963091,160.95,178.88,178.81,0.03558459]
[1755614964393,376.42,178.91,178.81,0.03558459]
[1755614965386,3.96329045,178.9,178.81,0.03558459]
[1755614966483,2.99,178.95,178.81,0.03558459]
[1755614966686,2.99,178.95,178.82,3.1]
[1755614967289,2.99,178.95,178.87,0.03819966]
[1755614967885,157.32,178.96,178.87,0.03819966]
[1755614970092,2.99,178.95,178.87,0.03819966]
[1755614971790,157.32,178.96,178.87,0.03819966]
[1755614973602,157.32,178.96,178.88,3.1]
[1755614974595,157.12,179.02,178.88,3.1]
[1755614974801,2.99,179.04,178.88,3.1]
[1755614975101,2.99,179.04,178.91,3.1]
[1755614976190,2.99,179.04,178.96,0.03644966]
[1755614977692,12.55623826,179.0,178.77,3.1]
[1755614977890,2.99,178.99,178.77,3.1]
[1755614978092,2.99,178.99,178.8,5.5917]
[1755614978296,2.99,178.99,178.81,3.1]
[1755614979498,12.55623826,179.0,178.81,3.1]
[1755614979499,2.95,178.97,178.81,3.1]
[1755614979697,2.95,178.95,178.81,3.1]
[1755614980905,375.8,178.98,178.81,3.1]
[1755614981504,2.95,178.97,178.81,3.1]
[1755614983202,2.95,178.97,178.83,3.17]
[1755614983396,375.8,178.98,178.85,12.55623826]
[1755614983699,2.95,178.98,178.86,3.17]
[1755614984003,157.12,178.99,178.86,3.17]
[1755614984392,2.95,178.98,178.86,3.17]
[1755614984901,2.95,178.98,178.82,3.17]
[1755614990011,2.95,178.97,178.82,3.17]
[1755614990208,2.95,178.95,178.82,3.17]
[1755614992809,2.95,178.95,178.83,3.17]
[1755614993109,375.7,178.96,178.83,3.17]
[1755614993412,375.7,178.96,178.84,3.17]
[1755614993807,375.7,178.96,178.84,8.7606]
[1755614994005,375.7,178.96,178.84,3.17]
[1755614995600,375.7,178.96,178.84,8.7605]
[1755614995806,160.07,178.99,178.84,3.17]
[1755614996206,160.07,178.99,178.88,3.17]
[1755614996607,2.95,178.98,178.88,3.17]
[1755614997614,157.12,178.99,178.88,3.17]
[1755615000414,2.95,178.98,178.88,3.17]
[1755615000711,2.95,178.98,178.82,12.55623826]
[1755615000911,2.95,178.98,178.83,3.17]
[1755615001306,2.95,178.98,178.85,3.17]
[1755615001307,156.96,178.97,178.85,3.17]
[1755615001711,2.95,178.98,178.88,5.5893]
[1755615001919,156.94,179.0,178.89,3.17]
[1755615002115,2.95,178.99,178.89,3.17]
[1755615002421,156.92,179.02,178.89,3.17]
[1755615003414,2.95,179.01,178.89,3.17]
[1755615005006,2.95,179.01,178.84,3.17]
[1755615005206,2.95,179.0,178.84,3.17]
[1755615005412,5.90191952,179.0,178.84,3.17]
[1755615005615,2.95,178.99,178.84,3.17]
[1755615006220,2.95,178.97,178.84,3.17]
[1755615009111,9.17866605,179.02,178.84,3.17]
[1755615009112,3.09,179.02,178.85,2.91]
[1755615010120,8.99191952,179.02,178.85,2.91]
[1755615010420,3.09,179.02,178.88,5.5891]
[1755615010612,3.09,179.02,178.89,2.91]
[1755615010819,8.99191952,179.02,178.89,2.91]
[1755615011015,8.99191952,179.01,178.81,2.91]
[1755615011320,3.09,178.98,178.81,2.91]
[1755615011713,3.09,178.97,178.81,2.91]
[1755615012512,8.99191952,178.97,178.81,2.91]
[1755615012817,3.09,178.96,178.81,2.91]
[1755615013023,3.09,178.95,178.81,2.91]
[1755615013315,3.09,178.93,178.81,2.91]
[1755615013718,3.09,178.93,178.73,12.55623826]
[1755615013921,3.09,178.93,178.74,2.91]
[1755615014216,3.09,178.93,178.79,5.5921]
[1755615014419,3.09,178.93,178.8,2.91]
[1755615015720,156.84,178.94,178.8,2.91]
[1755615015721,3.09,178.95,178.8,2.91]
[1755615015920,3.09,178.95,178.82,5.5909]
[1755615016112,3.09,178.95,178.83,2.91]
[1755615016913,156.8,178.97,178.86,5.5899]
[1755615017118,156.8,178.97,178.87,2.91]
[1755615017318,159.89,178.97,178.87,2.91]
[1755615019226,156.8,178.97,178.87,2.91]
[1755615019916,156.8,178.97,178.87,8.4996]
[1755615020228,3.09,179.02,178.87,2.91]
[1755615020619,5.90191952,179.02,178.87,2.91]
[1755615020828,3.09,179.01,178.87,2.91]
[1755615021431,3.09,179.0,178.87,2.91]
[1755615022029,3.09,179.0,178.81,2.91]
[1755615023232,3.09,178.98,178.81,2.91]
[1755615023433,3.09,178.97,178.81,2.91]
[1755615023939,3.09,178.96,178.81,2.91]
[1755615024728,3.09,179.01,178.84,2.91]
[1755615025531,3.09,179.01,178.83,13.65743405]
[1755615025731,156.74,179.03,178.88,2.91]
[1755615026126,156.74,179.03,178.89,5.589]
[1755615026327,156.74,179.03,178.9,2.91]
[1755615027231,156.74,179.03,178.92,2.91]
[1755615027531,3.09,179.02,178.86,13.65743405]
[1755615027831,3.09,179.02,178.88,2.91]
[1755615029233,3.09,179.0,178.83,2.91]
[1755615030528,3.09,179.0,178.82,2.91]
[1755615031135,3.09,179.0,178.85,6.23165607]
[1755615031330,3.09,179.0,178.86,2.91]
[1755615031534,3.09,179.0,178.87,5.5895]
[1755615031730,157.7126104,179.03,178.88,2.91]
[1755615032142,157.7126104,179.03,178.9,2.91]
[1755615032840,3.09,179.02,178.9,2.91]
[1755615033967,157.7126104,179.03,178.9,2.91]
[1755615034446,3.09,179.02,178.9,2.91]
[1755615036947,12.55198714,179.02,178.85,2.91]
[1755615037246,3.09,179.01,178.85,2.91]
[1755615040747,3.09,179.01,178.85,3.1]
[1755615042449,2.88,178.96,178.81,3.1]
[1755615042648,156.54,178.95,178.81,3.1]
[1755615043344,2.88,178.94,178.81,3.1]
[1755615045050,2.88,178.94,178.82,3.1]
[1755615048755,156.52,178.96,178.82,3.1]
[1755615048948,156.52,178.96,178.75,12.55198714]
[1755615048949,156.52,178.96,178.8,18.80544804]
[1755615049258,2.88,178.95,178.85,3.1]
[1755615049648,2.88,178.95,178.76,6.2534609]
[1755615049844,2.88,178.95,178.8,3.1]
[1755615050348,7.42854099,178.94,178.8,3.1]
[1755615050550,2.88,178.93,178.8,3.1]
[1755615050858,7.42854099,178.94,178.75,13.68200189]
[1755615050859,2.88,178.85,178.75,3.1]
[1755615051150,2.88,178.85,178.68,3.1]
[1755615051350,2.88,178.77,178.68,3.1]
[1755615051756,2.88,178.77,178.64,3.1]
[1755615052349,10.30854099,178.82,178.64,8.6967]
[1755615052653,173.22,178.86,178.58,9.38019136]
[1755615052654,10.30854099,178.76,178.59,3.1]
[1755615052953,8.96353279,178.88,178.59,3.1]
[1755615052954,10.30854099,178.72,178.59,3.1]
[1755615054247,2.88,178.72,178.59,3.1]
[1755615054851,156.42,178.75,178.59,5.5984]
[1755615055056,156.42,178.75,178.6,3.1]
[1755615055851,15.47358701,178.76,178.6,3.1]
[1755615056051,171.91358701,178.76,178.6,3.1]
[1755615056658,159.32,178.76,178.6,3.1]
[1755615058355,2.88,178.75,178.6,3.1]
[1755615060760,375.66,178.78,178.61,3.1]
[1755615061063,2.88,178.77,178.61,3.1]
[1755615061458,375.66,178.78,178.61,3.1]
[1755615061459,12.59358701,178.75,178.61,3.1]
[1755615061759,2.88,178.74,178.55,3.1]
[1755615062664,2.88,178.74,178.56,3.1]
[1755615063668,2.88,178.74,178.59,3.1]
[1755615064256,2.88,178.74,178.6,5.5979]
[1755615064562,2.88,178.74,178.61,3.1]
[1755615065063,378.54,178.78,178.61,3.1]
[1755615065666,2.88,178.78,178.61,3.1]
[1755615065867,384.96353279,178.94,178.7,3.1]
[1755615065868,2.88,178.84,178.7,3.1]
[1755615066369,2.88,178.84,178.7,8.695]
[1755615066560,159.3,178.89,178.71,3.1]
[1755615066966,159.3,178.89,178.7,12.59358701]
[1755615066967,159.3,178.89,178.75,3.1]
[1755615067166,2.88,178.89,178.75,15.69358701]
[1755615067462,2.88,178.94,178.83,3.1]
[1755615067670,156.42,178.98,178.83,3.1]
[1755615067880,2.88,178.99,178.86,3.1]
[1755615070065,2.88,178.99,178.79,376.04]
[1755615070066,2.88,178.99,178.79,379.19]
[1755615070360,2.88,178.99,178.8,3.15]
[1755615070966,2.88,178.99,178.82,3.15]
[1755615071472,2.88,178.99,178.84,5.5906]
[1755615071674,0.9726104,179.03,178.86,12.59358701]
[1755615071875,0.9726104,179.03,178.87,3.15]
[1755615072168,3.06,179.04,178.87,3.15]
[1755615072570,4.0326104,179.04,178.87,3.15]
[1755615072771,3.06,179.03,178.87,3.15]
[1755615073269,3.06,179.03,178.88,3.15]
[1755615073478,0.9726104,179.04,178.88,3.15]
[1755615073670,3.06,179.14,178.96,12.59358701]
[1755615073868,3.06,179.14,178.97,160.21]
[1755615074070,3.06,179.14,178.98,3.15]
[1755615074276,3.06,179.14,179.03,7.40573206]
[1755615074477,3.06,179.14,179.04,3.15]
[1755615075878,4.0318363,179.19,179.04,3.15]
[1755615077268,4.0318363,179.19,179.07,3.15]
[1755615077269,0.03687683,179.13,179.07,3.15]
[1755615077478,3.06,179.25,179.07,3.15]
[1755615077678,3.06,179.25,179.14,3.15]
[1755615078182,3.06,179.25,179.14,8.7313]
[1755615078576,3.06,179.25,179.14,3.15]
[1755615078974,3.06,179.31,179.18,3.18565102]
[1755615079378,3.06,179.31,179.18,3.15]
[1755615079579,3.06,179.29,179.14,12.52626129]
[1755615079779,3.06,179.29,179.23,0.03521143]
[1755615080675,3.06,179.27,179.13,3.15]
[1755615080982,3.06,179.27,179.07,3.15]
[1755615081184,3.06,179.26,179.07,3.15]
[1755615081582,12.52626129,179.26,179.07,3.15]
[1755615081880,3.06,179.25,179.07,3.15]
[1755615082475,3.06,179.25,179.14,3.15]
[1755615082789,156.52,179.27,179.14,3.15]
[1755615082991,0.97111762,179.3,179.15,5.5807]
[1755615083180,0.97111762,179.3,179.14,3.15]
[1755615083483,3.06,179.29,179.14,3.15]
[1755615084181,0.0354872,179.23,179.15,5.5809]
[1755615084573,0.0354872,179.23,179.12,3.15]
[1755615084773,0.0354872,179.23,179.17,3.15]
[1755615084978,3.06,179.29,179.17,3.15]
[1755615085388,156.66,179.35,179.16,12.52626129]
[1755615085389,0.97107697,179.33,179.16,12.52626129]
[1755615085589,0.97107697,179.33,179.19,3.15]
[1755615085883,0.97107697,179.33,179.19,8.7295]
[1755615086082,0.97107697,179.33,179.19,3.15]
[1755615086282,3.06,179.34,179.19,3.15]
[1755615086480,0.97100924,179.32,179.19,3.15]
[1755615086674,3.06,179.31,179.19,3.15]
[1755615087275,3.06,179.31,179.15,3.15]
[1755615088589,3.06,179.29,179.08,3.15]
[1755615088788,3.06,179.28,179.08,3.15]
[1755615088988,3.06,179.28,179.03,12.52626129]
[1755615088989,3.06,179.24,179.04,3.15]
[1755615089294,3.06,179.22,179.04,3.15]
[1755615089512,3.06,179.22,179.08,12.52626129]
[1755615089689,3.06,179.27,179.13,3.15]
[1755615090784,3.06,179.27,179.16,3.15]
[1755615090984,4.03100924,179.32,179.16,3.15]
[1755615091192,4.03100924,179.32,179.19,3.15]
[1755615091691,3.06,179.32,179.19,3.15]
[1755615092085,4.03103633,179.32,179.19,3.15]
[1755615092982,3.06,179.32,179.19,3.15]
[1755615094084,3.06,179.32,179.19,8.7295]
[1755615094689,3.06,179.32,179.11,3.15]
[1755615095287,3.06,179.32,179.15,3.15]
[1755615095696,3.06,179.32,179.18,3.15]
[1755615096192,3.06,179.32,179.18,8.73]
[1755615096396,3.06,179.32,179.18,3.15]
[1755615098093,3.06,179.32,179.14,3.15]
[1755615100486,3.06,179.32,179.15,5.5807]
[1755615100891,3.06,179.32,179.14,3.15]
[1755615100892,3.06,179.32,179.14,8.7312]
[1755615101792,3.06,179.32,179.15,5.5809]
[1755615102002,3.06,179.32,179.16,3.18]
[1755615102191,3.06,179.32,179.18,3.18]
[1755615102587,3.06,179.32,179.2,5.5792]
[1755615102793,378.95,179.36,179.2,3.18]
[1755615103093,379.92091442,179.36,179.2,3.18]
[1755615103798,379.92091442,179.36,179.23,5.5784]
[1755615103998,3.17,179.35,179.2,3.18]
[1755615104296,0.03561191,179.31,179.2,3.18]
[1755615104494,3.20561191,179.31,179.2,3.18]
[1755615104693,3.17,179.31,179.13,3.18]
[1755615104998,156.96,179.3,179.16,3.18]
[1755615105400,156.96,179.3,179.17,5.5801]
[1755615105893,156.96,179.3,179.16,8.7606]
[1755615106097,156.96,179.3,179.16,3.18]
[1755615107403,156.96,179.3,179.13,3.18]
[1755615107896,3.17,179.29,179.13,3.18]
[1755615109103,3.17,179.29,179.16,3.18]
[1755615109697,156.96,179.3,179.16,15.70626129]
[1755615109896,156.96,179.3,179.17,3.18]
[1755615110097,156.96,179.3,179.21,3.18]
[1755615111108,3.17,179.29,179.21,3.18]
[1755615111406,156.96,179.3,179.21,3.18]
[1755615111710,3.17,179.33,179.21,3.18]
[1755615112815,533.33091442,179.36,179.21,3.18]
[1755615113008,533.33091442,179.36,179.2,12.52626129]
[1755615113009,532.36,179.36,179.25,3.18]
[1755615114113,3.17,179.35,179.21,3.18]
[1755615118707,3.17,179.35,179.13,3.18]
[1755615118908,3.17,179.34,179.18,3.18]
[1755615119321,9.14568853,179.33,179.18,3.18]
[1755615119511,3.17,179.32,179.18,3.18]
[1755615119912,3.17,179.31,179.18,3.18]
[1755615120412,5.97568853,179.3,179.14,3.18]
[1755615120616,9.14568853,179.29,179.14,3.18]
[1755615120815,3.17,179.3,179.14,3.18]
[1755615121005,9.14568853,179.3,179.14,3.18]
[1755615121212,3.17,179.29,179.14,3.18]
[1755615121613,3.17,179.29,179.19,3.18]
[1755615122619,3.17,179.33,179.19,3.18]
[1755615122818,3.17,179.33,179.21,5.5789]
[1755615123125,3.17,179.33,179.22,3.18]
[1755615123440,3.17,179.33,179.22,8.7588]
[1755615123617,533.33079253,179.36,179.22,8.7588]
[1755615123618,533.33079253,179.36,179.22,3.18]
[1755615123819,532.36,179.36,179.22,3.18]
[1755615124015,4.14090087,179.35,179.23,5.5785]
[1755615124215,4.14090087,179.35,179.22,3.18]
[1755615124507,4.14090087,179.35,179.23,8.7584]
[1755615124914,4.14090087,179.35,179.23,3.18]
[1755615125112,3.17,179.35,179.25,5.5779]
[1755615125419,3.17,179.35,179.23,3.18]
[1755615126214,5.97568853,179.4,179.26,7.39079086]
[1755615126412,9.14568853,179.48,179.3,3.18]
[1755615126712,9.14568853,179.48,179.25,591.69131546]
[1755615126713,3.17,179.48,179.36,5.5744]
[1755615126911,3.17,179.48,179.34,3.18]
[1755615127812,3.17,179.47,179.34,3.18]
[1755615128013,3.17,179.46,179.34,3.18]
[1755615128904,3.17,179.46,179.26,12.48669727]
[1755615128905,5.97568853,179.46,179.27,3.18]
[1755615129109,3.07,179.45,179.27,3.18]
[1755615129313,3.07,179.44,179.27,3.18]
[1755615130020,3.07,179.44,179.27,8.757]
[1755615130213,3.07,179.44,179.27,3.18]
[1755615130412,3.07,179.44,179.28,5.5769]
[1755615130813,3.07,179.44,179.29,3.13]
[1755615131209,9.93374342,179.49,179.2,3.13]
[1755615131210,12.48669727,179.38,179.2,3.13]
[1755615131410,3.07,179.36,179.2,3.13]
[1755615131615,3.07,179.36,179.21,3.13]
[1755615131919,3.07,179.35,179.16,3.13]
[1755615132510,3.07,179.35,179.12,18.74015817]
[1755615132722,3.07,179.35,179.17,3.13]
[1755615133117,157.1,179.38,179.25,3.13]
[1755615133316,3.07,179.45,179.25,15.61669727]
[1755615133518,3.07,179.45,179.31,5.5758]
[1755615133822,3.07,179.45,179.32,3.13]
[1755615134320,3.07,179.45,179.27,3.13]
[1755615135719,3.07,179.45,179.3,3.13]
[1755615137726,158.13021063,179.49,179.36,5.5744]
[1755615137727,0.97021063,179.49,179.36,5.5744]
[1755615137925,0.97021063,179.49,179.37,3.13]
[1755615138324,0.97021063,179.49,179.37,8.7041]
[1755615138520,3.07,179.51,179.37,3.13]
[1755615138723,4.04002132,179.51,179.37,3.13]
[1755615139324,4.04002132,179.51,179.37,8.7039]
[1755615139521,0.97002132,179.51,179.37,3.13]
[1755615139724,374.78,179.54,179.37,3.13]
[1755615140027,3.07,179.56,179.39,12.48669727]
[1755615140225,3.07,179.56,179.4,3.13]
[1755615142023,3.07,179.56,179.35,3.13]
[1755615142232,0.96976453,179.57,179.35,3.13]
[1755615142233,3.07,179.52,179.35,3.13]
[1755615143431,12.48669727,179.51,179.35,3.13]
[1755615143730,3.07,179.5,179.35,3.13]
[1755615144736,3.07,179.5,179.33,3.13]
[1755615145633,12.48669727,179.41,179.28,3.13]
[1755615145928,12.48669727,179.41,179.23,3.13]
[1755615145929,3.07,179.4,179.23,3.13]
[1755615146130,5.97568853,179.47,179.23,71.13]
[1755615146435,3.07,179.51,179.28,3.13]
[1755615146932,3.07,179.51,179.31,3.13]
[1755615149130,3.07,179.51,179.34,12.48669727]
[1755615149435,3.07,179.51,179.35,3.13]
[1755615149633,3.07,179.51,179.38,3.13]
[1755615150131,3.07,179.51,179.38,8.7036]
[1755615151435,3.07,179.51,179.39,5.5735]
[1755615151629,3.07,179.51,179.38,3.13]
[1755615151833,3.07,179.51,179.29,162.9734609]
[1755615151834,157.06,179.55,179.4,3.13]
[1755615152637,157.06,179.55,179.4,8.703]
[1755615153031,157.06,179.55,179.4,3.13]
[1755615153228,157.06,179.55,179.42,5.5725]
[1755615153432,157.06,179.55,179.43,3.13]
[1755615153833,157.06,179.55,179.43,8.7022]
[1755615154040,157.06,179.55,179.43,3.13]
[1755615155141,3.07,179.54,179.43,3.13]
[1755615155732,3.07,179.54,179.4,3.13]
[1755615156643,3.07,179.54,179.41,5.5729]
[1755615156844,3.07,179.54,179.42,3.13]
[1755615158453,3.07,179.54,179.39,15.61669727]
[1755615158740,3.07,179.54,179.34,12.48669727]
[1755615158943,16.75,179.54,179.35,3.13]
[1755615159134,3.12,179.53,179.35,3.13]
[1755615159340,3.12,179.51,179.35,3.13]
[1755615159848,3.12,179.51,179.36,2.97]
[1755615162848,3.12,179.51,179.35,12.48669727]
[1755615162849,3.12,179.51,179.38,2.97]
[1755615163942,3.12,179.51,179.4,5.573]
[1755615164148,160.18,179.55,179.41,2.97]
[1755615164555,160.18,179.55,179.42,2.97]
[1755615164946,3.12,179.55,179.43,5.572]
[1755615165248,3.12,179.55,179.42,2.97]
[1755615165638,3.12,179.55,179.42,8.5424]
[1755615165843,3.12,179.55,179.42,2.97]
[1755615166043,3.12,179.55,179.42,8.5424]
[1755615166243,3.12,179.55,179.42,2.97]
[1755615170044,3.12,179.55,179.36,2.97]
[1755615170245,12.48669727,179.51,179.32,2.97]
[1755615170450,3.12,179.49,179.32,2.97]
[1755615172955,3.12,179.49,179.3,2.97]
[1755615173451,3.12,179.49,179.32,5.5757]
[1755615173653,3.12,179.49,179.33,2.97]
[1755615174545,3.12,179.49,179.34,2.97]
[1755615174745,158.96,179.49,179.34,2.97]
[1755615174952,158.96,179.49,179.35,5.5748]
[1755615175151,158.96,179.49,179.36,2.97]
[1755615175356,3.12,179.49,179.36,2.97]
[1755615176446,3.12,179.53,179.36,2.97]
[1755615176651,3.12,179.53,179.38,2.97]
[1755615177455,3.12,179.53,179.39,7.38008547]
[1755615177656,3.12,179.53,179.4,2.97]
[1755615181764,155.84,179.54,179.4,2.97]
[1755615182159,155.84,179.54,179.43,2.97]
[1755615182565,3.12,179.53,179.43,2.97]
[1755615183059,3.12,179.53,179.37,2.97]
[1755615183266,3.12,179.53,179.34,9.38019136]
[1755615183267,3.12,179.53,179.4,2.97]
[1755615185467,161.81568853,179.54,179.4,2.97]